[Event "2026 Biel Blitz Open"]
[Site "Biel, CH"]
[Date "2026.07.19"]
[Round "3"]
[White "Amonatov, Farrukh"]
[Black "Fernandes Barbosa Dos Santos, Gabriel"]
[Result "1-0"]
[Board "3"]
[TimeControl "180+2"]
[WhiteFideId "14700077"]
[BlackFideId "1354388"]
[WhiteElo "2585"]
[BlackElo "2167"]
[WhiteTitle "GM"]
[BlackTitle "CM"]
[WhiteClock "0:01:04"]
[BlackClock "0:00:29"]
[Variant "Standard"]
[EndDate "2026.07.19"]
[EndTime "12:27:17"]

1. e4 {[%clk 0:03:03]}  c5 {[%clk 0:03:03]} 2. Nf3 {[%clk 0:03:04]}  d6 {[%clk 0:03:04]} 3. d4 {[%clk 0:03:05]}  cxd4 {[%clk 0:03:04]}
4. Nxd4 {[%clk 0:03:05]}  Nf6 {[%clk 0:03:05]} 5. Nc3 {[%clk 0:03:06]}  g6 {[%clk 0:03:05]} 6. Be3 {[%clk 0:03:07]}  Bg7 {[%clk 0:03:06]}
7. f3 {[%clk 0:03:08]}  O-O {[%clk 0:03:06]} 8. Qd2 {[%clk 0:03:09]}  Nc6 {[%clk 0:03:06]} 9. Bc4 {[%clk 0:03:10]}  Bd7 {[%clk 0:03:05]}
10. h4 {[%clk 0:03:10]}  Rc8 {[%clk 0:03:03]} 11. Bb3 {[%clk 0:03:11]}  h5 {[%clk 0:02:56]} 12. O-O-O {[%clk 0:03:10]}  Nxd4 {[%clk 0:02:38]}
13. Bxd4 {[%clk 0:03:10]}  b5 {[%clk 0:02:39]} 14. g4 {[%clk 0:02:59]}  a5 {[%clk 0:02:35]} 15. gxh5 {[%clk 0:03:06]}  Nxh5 {[%clk 0:02:30]}
16. Bxg7 {[%clk 0:02:54]}  Kxg7 {[%clk 0:02:28]} 17. a3 {[%clk 0:02:47]}  b4 {[%clk 0:02:09]} 18. axb4 {[%clk 0:02:47]}  axb4 {[%clk 0:02:09]}
19. Nd5 {[%clk 0:02:48]}  Qa5 {[%clk 0:02:03]} 20. Qxb4 {[%clk 0:02:19]}  Qa1+ {[%clk 0:01:55]} 21. Kd2 {[%clk 0:02:20]}  Qxb2 {[%clk 0:01:55]}
22. Ke3 {[%clk 0:01:24]}  e6 {[%clk 0:01:29]} 23. Rb1 {[%clk 0:01:24]}  Qe5 {[%clk 0:01:00]} 24. f4 {[%clk 0:01:25]}  Nxf4 {[%clk 0:00:55]}
25. Nxf4 {[%clk 0:01:26]}  Rc3+ {[%clk 0:00:50]} 26. Nd3 {[%clk 0:01:24]}  Qg3+ {[%clk 0:00:40]} 27. Kd2 {[%clk 0:01:25]}  Rfc8 {[%clk 0:00:29]}
28. Qxc3+ {[%clk 0:01:04]} 1-0

[Event "2026 Biel Blitz Open"]
[Site "Biel, CH"]
[Date "2026.07.19"]
[Round "3"]
[White "Maruntis, Patrik-Robert"]
[Black "Kozak, Adam"]
[Result "0-1"]
[Board "4"]
[TimeControl "180+2"]
[WhiteFideId "1259997"]
[BlackFideId "753246"]
[WhiteElo "2167"]
[BlackElo "2537"]
[BlackTitle "GM"]
[WhiteClock "0:00:04"]
[BlackClock "0:00:08"]
[Variant "Standard"]
[EndDate "2026.07.19"]
[EndTime "12:28:46"]

1. e4 {[%clk 0:03:02]}  e5 {[%clk 0:03:03]} 2. Nf3 {[%clk 0:03:02]}  Nc6 {[%clk 0:03:04]} 3. Bc4 {[%clk 0:03:03]}  Bc5 {[%clk 0:03:04]}
4. O-O {[%clk 0:03:02]}  Nf6 {[%clk 0:03:05]} 5. d3 {[%clk 0:03:03]}  d6 {[%clk 0:03:02]} 6. a4 {[%clk 0:03:02]}  a5 {[%clk 0:02:59]}
7. c3 {[%clk 0:03:02]}  Ba7 {[%clk 0:02:53]} 8. Be3 {[%clk 0:02:59]}  O-O {[%clk 0:02:47]} 9. Nbd2 {[%clk 0:02:50]}  Ne7 {[%clk 0:02:38]}
10. Re1 {[%clk 0:02:21]}  Bxe3 {[%clk 0:02:29]} 11. Rxe3 {[%clk 0:02:14]}  Ng6 {[%clk 0:02:29]} 12. d4 {[%clk 0:02:13]}  Qe7 {[%clk 0:02:19]}
13. Nf1 {[%clk 0:01:47]}  Nf4 {[%clk 0:02:00]} 14. Re1 {[%clk 0:01:29]}  g6 {[%clk 0:01:48]} 15. Ne3 {[%clk 0:01:10]}  c6 {[%clk 0:01:47]}
16. dxe5 {[%clk 0:00:58]}  dxe5 {[%clk 0:01:47]} 17. Qc2 {[%clk 0:00:59]}  Ng4 {[%clk 0:01:39]} 18. Rad1 {[%clk 0:00:25]}  Nxe3 {[%clk 0:01:36]}
19. fxe3 {[%clk 0:00:09]}  Nh5 {[%clk 0:01:35]} 20. Qb3 {[%clk 0:00:05]}  Kg7 {[%clk 0:01:28]} 21. Qb6 {[%clk 0:00:04]}  Nf6 {[%clk 0:01:24]}
22. Bd3 {[%clk 0:00:03]}  Bg4 {[%clk 0:01:04]} 23. Qb3 {[%clk 0:00:04]}  Rfd8 {[%clk 0:00:58]} 24. h3 {[%clk 0:00:04]}  Bxf3 {[%clk 0:00:58]}
25. gxf3 {[%clk 0:00:05]}  Nh5 {[%clk 0:00:58]} 26. Bf1 {[%clk 0:00:03]}  Rxd1 {[%clk 0:00:52]} 27. Rxd1 {[%clk 0:00:04]}  Qg5+ {[%clk 0:00:53]}
28. Kf2 {[%clk 0:00:04]}  Qg3+ {[%clk 0:00:31]} 29. Ke2 {[%clk 0:00:05]}  Qh2+ {[%clk 0:00:32]} 30. Ke1 {[%clk 0:00:06]}  Qg1 {[%clk 0:00:28]}
31. Rd7 {[%clk 0:00:04]}  Qxe3+ {[%clk 0:00:27]} 32. Be2 {[%clk 0:00:05]}  Rf8 {[%clk 0:00:27]} 33. Rd3 {[%clk 0:00:04]}  Qg1+ {[%clk 0:00:25]}
34. Kd2 {[%clk 0:00:05]}  Nf4 {[%clk 0:00:25]} 35. Rd7 {[%clk 0:00:06]}  b6 {[%clk 0:00:16]} 36. Rd6 {[%clk 0:00:05]}  Ng2 {[%clk 0:00:12]}
37. Qc4 {[%clk 0:00:04]}  Qe1+ {[%clk 0:00:11]} 38. Kd3 {[%clk 0:00:03]}  Nf4+ {[%clk 0:00:10]} 39. Kc2 {[%clk 0:00:04]}  Nxe2 {[%clk 0:00:08]}
40. Rxc6 {[%clk 0:00:05]}  Nf4 {[%clk 0:00:07]} 41. Rxb6 {[%clk 0:00:04]}  Qf2+ {[%clk 0:00:08]} 0-1

[Event "2026 Biel Blitz Open"]
[Site "Biel, CH"]
[Date "2026.07.19"]
[Round "3"]
[White "Kelecevic, Nedeljko"]
[Black "Gloeckler, Christian"]
[Result "0-1"]
[Board "5"]
[TimeControl "180+2"]
[WhiteFideId "14400537"]
[BlackFideId "34608966"]
[WhiteElo "2150"]
[BlackElo "2513"]
[WhiteTitle "IM"]
[BlackTitle "IM"]
[WhiteClock "0:00:08"]
[BlackClock "0:01:59"]
[Variant "Standard"]
[EndDate "2026.07.19"]
[EndTime "12:26:10"]

1. d4 {[%clk 0:03:02]}  Nf6 {[%clk 0:03:03]} 2. c4 {[%clk 0:03:03]}  e6 {[%clk 0:03:04]} 3. Nc3 {[%clk 0:03:04]}  Bb4 {[%clk 0:03:06]}
4. Qc2 {[%clk 0:03:05]}  O-O {[%clk 0:02:58]} 5. e4 {[%clk 0:03:06]}  d6 {[%clk 0:02:54]} 6. Bg5 {[%clk 0:02:57]}  h6 {[%clk 0:02:48]}
7. Bh4 {[%clk 0:02:58]}  Nc6 {[%clk 0:02:49]} 8. O-O-O {[%clk 0:02:37]}  Bxc3 {[%clk 0:02:37]} 9. bxc3 {[%clk 0:02:37]}  e5 {[%clk 0:02:38]}
10. dxe5 {[%clk 0:02:33]}  Nxe5 {[%clk 0:02:38]} 11. f4 {[%clk 0:02:16]}  Ng6 {[%clk 0:02:36]} 12. Bg3 {[%clk 0:02:17]}  Bd7 {[%clk 0:02:35]}
13. Be2 {[%clk 0:02:12]}  Qe8 {[%clk 0:02:35]} 14. Bf3 {[%clk 0:02:11]}  Ba4 {[%clk 0:02:36]} 15. Qd3 {[%clk 0:02:04]}  Bxd1 {[%clk 0:02:36]}
16. Kxd1 {[%clk 0:02:05]}  Qa4+ {[%clk 0:02:35]} 17. Qc2 {[%clk 0:01:59]}  Qxc4 {[%clk 0:02:27]} 18. Nh3 {[%clk 0:01:38]}  d5 {[%clk 0:02:25]}
19. e5 {[%clk 0:01:31]}  Ne4 {[%clk 0:02:26]} 20. Bxe4 {[%clk 0:01:23]}  dxe4 {[%clk 0:02:26]} 21. f5 {[%clk 0:01:17]}  Rad8+ {[%clk 0:02:24]}
22. Kc1 {[%clk 0:01:18]}  Rd3 {[%clk 0:02:24]} 23. Kb2 {[%clk 0:00:56]}  Nxe5 {[%clk 0:02:25]} 24. Nf2 {[%clk 0:00:38]}  Rfd8 {[%clk 0:02:08]}
25. Nxd3 {[%clk 0:00:22]}  Nxd3+ {[%clk 0:02:07]} 26. Ka1 {[%clk 0:00:22]}  e3 {[%clk 0:02:03]} 27. f6 {[%clk 0:00:08]}  Nc5 {[%clk 0:01:59]} 0-1

[Event "2026 Biel Blitz Open"]
[Site "Biel, CH"]
[Date "2026.07.19"]
[Round "3"]
[White "Aronyak Ghosh"]
[Black "Savitha Shri B"]
[Result "1-0"]
[Board "6"]
[TimeControl "180+2"]
[WhiteFideId "25072846"]
[BlackFideId "35061887"]
[WhiteElo "2488"]
[BlackElo "2161"]
[WhiteTitle "IM"]
[BlackTitle "IM"]
[WhiteClock "0:00:13"]
[BlackClock "0:00:13"]
[Variant "Standard"]
[EndDate "2026.07.19"]
[EndTime "12:30:39"]

1. d4 {[%clk 0:03:02]}  Nf6 {[%clk 0:03:04]} 2. Bf4 {[%clk 0:03:00]}  d5 {[%clk 0:03:02]} 3. e3 {[%clk 0:03:00]}  c5 {[%clk 0:03:04]}
4. dxc5 {[%clk 0:02:59]}  Qa5+ {[%clk 0:03:03]} 5. Nd2 {[%clk 0:03:00]}  Qxc5 {[%clk 0:03:01]} 6. a3 {[%clk 0:03:00]}  Bg4 {[%clk 0:02:29]}
7. Ngf3 {[%clk 0:02:38]}  Nbd7 {[%clk 0:02:20]} 8. h3 {[%clk 0:02:09]}  Bh5 {[%clk 0:02:20]} 9. Be2 {[%clk 0:02:03]}  e6 {[%clk 0:01:52]}
10. O-O {[%clk 0:01:56]}  Bd6 {[%clk 0:01:51]} 11. b4 {[%clk 0:01:48]}  Qc7 {[%clk 0:01:52]} 12. Bxd6 {[%clk 0:01:49]}  Qxd6 {[%clk 0:01:54]}
13. c4 {[%clk 0:01:49]}  O-O {[%clk 0:01:52]} 14. cxd5 {[%clk 0:01:39]}  Nxd5 {[%clk 0:01:48]} 15. Rc1 {[%clk 0:01:35]}  Rac8 {[%clk 0:01:49]}
16. Nc4 {[%clk 0:01:28]}  Qe7 {[%clk 0:01:46]} 17. Qb3 {[%clk 0:01:26]}  h6 {[%clk 0:01:35]} 18. Qb2 {[%clk 0:01:14]}  Rfd8 {[%clk 0:01:33]}
19. Rfd1 {[%clk 0:01:03]}  N7b6 {[%clk 0:01:21]} 20. Nxb6 {[%clk 0:00:59]}  Nxb6 {[%clk 0:01:22]} 21. Rxd8+ {[%clk 0:00:54]}  Rxd8 {[%clk 0:01:23]}
22. Qe5 {[%clk 0:00:52]}  Bg6 {[%clk 0:01:20]} 23. Qc7 {[%clk 0:00:45]}  Rd7 {[%clk 0:01:09]} 24. Qb8+ {[%clk 0:00:45]}  Rd8 {[%clk 0:01:10]}
25. Qxa7 {[%clk 0:00:44]}  Nd5 {[%clk 0:01:11]} 26. Qc5 {[%clk 0:00:42]}  Qf6 {[%clk 0:01:11]} 27. Qd4 {[%clk 0:00:37]}  Qe7 {[%clk 0:00:54]}
28. Qb2 {[%clk 0:00:38]}  Be4 {[%clk 0:00:53]} 29. Nd2 {[%clk 0:00:34]}  Bg6 {[%clk 0:00:46]} 30. Bf3 {[%clk 0:00:35]}  Qg5 {[%clk 0:00:43]}
31. Bxd5 {[%clk 0:00:29]}  Qxd5 {[%clk 0:00:44]} 32. Nb3 {[%clk 0:00:21]}  Be4 {[%clk 0:00:38]} 33. f3 {[%clk 0:00:18]}  Bg6 {[%clk 0:00:40]}
34. e4 {[%clk 0:00:18]}  Qg5 {[%clk 0:00:39]} 35. Qc3 {[%clk 0:00:15]}  Kh7 {[%clk 0:00:32]} 36. a4 {[%clk 0:00:16]}  Rd6 {[%clk 0:00:24]}
37. a5 {[%clk 0:00:17]}  Rc6 {[%clk 0:00:25]} 38. Nc5 {[%clk 0:00:17]}  Rd6 {[%clk 0:00:25]} 39. Nb3 {[%clk 0:00:12]}  Rc6 {[%clk 0:00:26]}
40. Nc5 {[%clk 0:00:13]}  Rd6 {[%clk 0:00:28]} 41. Nb3 {[%clk 0:00:07]}  Rc6 {[%clk 0:00:28]} 42. Qe1 {[%clk 0:00:07]}  Rd6 {[%clk 0:00:28]}
43. Rc3 {[%clk 0:00:06]}  Qb5 {[%clk 0:00:26]} 44. Rc1 {[%clk 0:00:04]}  Qa4 {[%clk 0:00:22]} 45. Nc5 {[%clk 0:00:06]}  Qb5 {[%clk 0:00:23]}
46. Qc3 {[%clk 0:00:06]}  b6 {[%clk 0:00:19]} 47. axb6 {[%clk 0:00:07]}  Rxb6 {[%clk 0:00:21]} 48. Rb1 {[%clk 0:00:08]}  Rd6 {[%clk 0:00:22]}
49. Kf2 {[%clk 0:00:08]}  f5 {[%clk 0:00:20]} 50. e5 {[%clk 0:00:09]}  Rc6 {[%clk 0:00:14]} 51. Rb2 {[%clk 0:00:09]}  Qb6 {[%clk 0:00:12]}
52. Qe3 {[%clk 0:00:09]}  f4 {[%clk 0:00:12]} 53. Qd4 {[%clk 0:00:09]}  Rc8 {[%clk 0:00:12]} 54. Rd2 {[%clk 0:00:09]}  Rb8 {[%clk 0:00:06]}
55. Nd7 {[%clk 0:00:08]}  Qxd4+ {[%clk 0:00:06]} 56. Rxd4 {[%clk 0:00:09]}  Re8 {[%clk 0:00:05]} 57. Rxf4 {[%clk 0:00:09]}  Bd3 {[%clk 0:00:06]}
58. Nc5 {[%clk 0:00:10]}  Bb5 {[%clk 0:00:07]} 59. Rd4 {[%clk 0:00:10]}  Kg6 {[%clk 0:00:08]} 60. Ke3 {[%clk 0:00:11]}  Kf5 {[%clk 0:00:09]}
61. f4 {[%clk 0:00:09]}  Ra8 {[%clk 0:00:11]} 62. g4+ {[%clk 0:00:10]}  Kg6 {[%clk 0:00:12]} 63. Rd6 {[%clk 0:00:09]}  Ra3+ {[%clk 0:00:13]}
64. Kd4 {[%clk 0:00:10]}  Rxh3 {[%clk 0:00:13]} 65. Rxe6+ {[%clk 0:00:09]}  Kf7 {[%clk 0:00:13]} 66. Rb6 {[%clk 0:00:10]}  Be2 {[%clk 0:00:14]}
67. e6+ {[%clk 0:00:09]}  Kf6 {[%clk 0:00:14]} 68. Ne4+ {[%clk 0:00:10]}  Ke7 {[%clk 0:00:14]} 69. Ke5 {[%clk 0:00:11]}  Bxg4 {[%clk 0:00:13]}
70. Rb7+ {[%clk 0:00:13]} 1-0

[Event "2026 Biel Blitz Open"]
[Site "Biel, CH"]
[Date "2026.07.19"]
[Round "3"]
[White "Matsumura, Cocoro"]
[Black "Alexakis, Dimitris"]
[Result "0-1"]
[Board "7"]
[TimeControl "180+2"]
[WhiteFideId "36087114"]
[BlackFideId "4277023"]
[WhiteElo "2131"]
[BlackElo "2459"]
[WhiteTitle "CM"]
[BlackTitle "GM"]
[WhiteClock "0:00:30"]
[BlackClock "0:01:05"]
[Variant "Standard"]
[EndDate "2026.07.19"]
[EndTime "12:26:37"]

1. e4 {[%clk 0:03:03]}  c5 {[%clk 0:03:03]} 2. Nf3 {[%clk 0:03:04]}  e6 {[%clk 0:03:03]} 3. d4 {[%clk 0:03:05]}  cxd4 {[%clk 0:03:03]}
4. Nxd4 {[%clk 0:03:06]}  Nc6 {[%clk 0:03:04]} 5. Nc3 {[%clk 0:03:07]}  Qc7 {[%clk 0:03:05]} 6. a3 {[%clk 0:03:08]}  a6 {[%clk 0:03:05]}
7. Be3 {[%clk 0:03:09]}  b5 {[%clk 0:03:06]} 8. f4 {[%clk 0:03:06]}  Bb7 {[%clk 0:03:07]} 9. Bd3 {[%clk 0:03:05]}  h5 {[%clk 0:03:05]}
10. Qf3 {[%clk 0:03:03]}  Nf6 {[%clk 0:03:04]} 11. O-O-O {[%clk 0:02:57]}  Rc8 {[%clk 0:03:05]} 12. h3 {[%clk 0:02:53]}  b4 {[%clk 0:03:02]}
13. axb4 {[%clk 0:02:52]}  Nxb4 {[%clk 0:03:01]} 14. g4 {[%clk 0:02:39]}  d5 {[%clk 0:02:53]} 15. e5 {[%clk 0:02:35]}  Ne4 {[%clk 0:02:53]}
16. Bxe4 {[%clk 0:02:01]}  dxe4 {[%clk 0:02:53]} 17. Qf2 {[%clk 0:01:53]}  Bc5 {[%clk 0:01:59]} 18. Nb3 {[%clk 0:01:33]}  Na2+ {[%clk 0:01:46]}
19. Kb1 {[%clk 0:01:28]}  Nxc3+ {[%clk 0:01:43]} 20. bxc3 {[%clk 0:01:29]}  Bxe3 {[%clk 0:01:38]} 21. Qxe3 {[%clk 0:01:30]}  Qxc3 {[%clk 0:01:36]}
22. Qxc3 {[%clk 0:01:20]}  Rxc3 {[%clk 0:01:36]} 23. Rhg1 {[%clk 0:00:56]}  h4 {[%clk 0:01:31]} 24. Rd6 {[%clk 0:00:51]}  O-O {[%clk 0:01:26]}
25. Rd7 {[%clk 0:00:48]}  Bd5 {[%clk 0:01:25]} 26. Kb2 {[%clk 0:00:45]}  Rxh3 {[%clk 0:01:21]} 27. Nc5 {[%clk 0:00:39]}  Rb8+ {[%clk 0:01:08]}
28. Kc1 {[%clk 0:00:40]}  Rc8 {[%clk 0:01:08]} 29. Nxa6 {[%clk 0:00:30]}  Ra3 {[%clk 0:01:05]} 0-1

[Event "2026 Biel Blitz Open"]
[Site "Biel, CH"]
[Date "2026.07.19"]
[Round "3"]
[White "Arjun Kalyan"]
[Black "Hakimifard, Ghazal"]
[Result "1-0"]
[Board "8"]
[TimeControl "180+2"]
[WhiteFideId "35018701"]
[BlackFideId "12506540"]
[WhiteElo "2451"]
[BlackElo "2130"]
[WhiteTitle "GM"]
[BlackTitle "WGM"]
[WhiteClock "0:00:20"]
[BlackClock "0:00:07"]
[Variant "Standard"]
[EndDate "2026.07.19"]
[EndTime "12:28:37"]

1. e4 {[%clk 0:03:03]}  c5 {[%clk 0:03:04]} 2. Nf3 {[%clk 0:03:04]}  e6 {[%clk 0:03:05]} 3. d4 {[%clk 0:03:05]}  cxd4 {[%clk 0:03:06]}
4. Nxd4 {[%clk 0:03:06]}  a6 {[%clk 0:03:08]} 5. Bd3 {[%clk 0:03:06]}  Bc5 {[%clk 0:03:08]} 6. Nb3 {[%clk 0:03:07]}  Ba7 {[%clk 0:03:08]}
7. Qf3 {[%clk 0:03:08]}  Nc6 {[%clk 0:03:07]} 8. Qg3 {[%clk 0:03:07]}  Nge7 {[%clk 0:02:40]} 9. Nc3 {[%clk 0:02:55]}  O-O {[%clk 0:02:37]}
10. Bf4 {[%clk 0:02:56]}  d5 {[%clk 0:02:24]} 11. e5 {[%clk 0:02:55]}  Ng6 {[%clk 0:02:14]} 12. Bg5 {[%clk 0:02:38]}  Qc7 {[%clk 0:02:11]}
13. f4 {[%clk 0:02:37]}  Nb4 {[%clk 0:02:08]} 14. h4 {[%clk 0:02:06]}  Nxd3+ {[%clk 0:01:53]} 15. cxd3 {[%clk 0:01:52]}  Ne7 {[%clk 0:01:21]}
16. Bxe7 {[%clk 0:01:33]}  Qxe7 {[%clk 0:01:22]} 17. h5 {[%clk 0:01:29]}  h6 {[%clk 0:01:18]} 18. O-O-O {[%clk 0:01:28]}  b5 {[%clk 0:01:08]}
19. d4 {[%clk 0:01:18]}  Bd7 {[%clk 0:01:09]} 20. Kb1 {[%clk 0:01:18]}  Rfc8 {[%clk 0:01:05]} 21. Qe3 {[%clk 0:01:07]}  Bb6 {[%clk 0:00:59]}
22. g4 {[%clk 0:01:08]}  a5 {[%clk 0:00:44]} 23. g5 {[%clk 0:01:08]}  a4 {[%clk 0:00:29]} 24. Nc1 {[%clk 0:01:09]}  b4 {[%clk 0:00:24]}
25. N3e2 {[%clk 0:01:09]}  Bb5 {[%clk 0:00:23]} 26. Rhg1 {[%clk 0:01:02]}  Kh7 {[%clk 0:00:22]} 27. Qg3 {[%clk 0:00:20]}  Rg8 {[%clk 0:00:23]}
28. f5 {[%clk 0:00:18]}  exf5 {[%clk 0:00:22]} 29. Nf4 {[%clk 0:00:18]}  Qxg5 {[%clk 0:00:19]} 30. Qxg5 {[%clk 0:00:19]}  hxg5 {[%clk 0:00:20]}
31. Rxg5 {[%clk 0:00:20]}  Rac8 {[%clk 0:00:11]} 32. Nxd5 {[%clk 0:00:20]}  Bd8 {[%clk 0:00:11]} 33. Rxf5 {[%clk 0:00:20]}  Rf8 {[%clk 0:00:11]}
34. e6 {[%clk 0:00:20]}  Bc4 {[%clk 0:00:06]} 35. e7 {[%clk 0:00:18]}  Bxe7 {[%clk 0:00:04]} 36. Nxe7 {[%clk 0:00:20]}  Rc7 {[%clk 0:00:05]}
37. Nd5 {[%clk 0:00:18]}  Rd7 {[%clk 0:00:06]} 38. Nxb4 {[%clk 0:00:18]}  Rfd8 {[%clk 0:00:03]} 39. b3 {[%clk 0:00:17]}  Be6 {[%clk 0:00:05]}
40. Rf4 {[%clk 0:00:17]}  axb3 {[%clk 0:00:06]} 41. axb3 {[%clk 0:00:19]}  Rb7 {[%clk 0:00:07]} 42. d5 {[%clk 0:00:20]} 1-0

[Event "2026 Biel Blitz Open"]
[Site "Biel, CH"]
[Date "2026.07.19"]
[Round "3"]
[White "Erne, Raphael"]
[Black "Elmi, Saad Abobaker"]
[Result "0-1"]
[Board "9"]
[TimeControl "180+2"]
[WhiteFideId "1341928"]
[BlackFideId "1553259"]
[WhiteElo "2128"]
[BlackElo "2409"]
[BlackTitle "IM"]
[WhiteClock "0:00:07"]
[BlackClock "0:00:51"]
[Variant "Standard"]
[EndDate "2026.07.19"]
[EndTime "12:27:49"]

1. c4 {[%clk 0:03:03]}  g6 {[%clk 0:03:03]} 2. g3 {[%clk 0:03:04]}  Bg7 {[%clk 0:03:05]} 3. Bg2 {[%clk 0:03:05]}  e5 {[%clk 0:03:05]}
4. Nc3 {[%clk 0:03:05]}  Nc6 {[%clk 0:03:05]} 5. Nf3 {[%clk 0:03:04]}  d6 {[%clk 0:03:05]} 6. d3 {[%clk 0:03:02]}  Bd7 {[%clk 0:03:04]}
7. Rb1 {[%clk 0:03:02]}  Qc8 {[%clk 0:03:05]} 8. h3 {[%clk 0:03:03]}  a5 {[%clk 0:03:05]} 9. a3 {[%clk 0:03:04]}  Nge7 {[%clk 0:03:01]}
10. b4 {[%clk 0:03:03]}  axb4 {[%clk 0:03:02]} 11. axb4 {[%clk 0:03:04]}  O-O {[%clk 0:03:03]} 12. b5 {[%clk 0:02:53]}  Nd8 {[%clk 0:03:00]}
13. Kf1 {[%clk 0:02:36]}  Ne6 {[%clk 0:02:48]} 14. Kg1 {[%clk 0:02:33]}  c6 {[%clk 0:02:38]} 15. Kh2 {[%clk 0:02:23]}  d5 {[%clk 0:02:38]}
16. bxc6 {[%clk 0:02:08]}  bxc6 {[%clk 0:02:39]} 17. Qc2 {[%clk 0:01:59]}  Qa6 {[%clk 0:02:21]} 18. Rd1 {[%clk 0:01:29]}  Nd4 {[%clk 0:02:01]}
19. Qd2 {[%clk 0:00:58]}  Rfb8 {[%clk 0:01:49]} 20. Rxb8+ {[%clk 0:00:39]}  Rxb8 {[%clk 0:01:50]} 21. cxd5 {[%clk 0:00:39]}  Nb3 {[%clk 0:01:42]}
22. Qa2 {[%clk 0:00:30]}  Qxa2 {[%clk 0:01:37]} 23. Nxa2 {[%clk 0:00:32]}  cxd5 {[%clk 0:01:37]} 24. Bd2 {[%clk 0:00:18]}  Nxd2 {[%clk 0:00:58]}
25. Rxd2 {[%clk 0:00:14]}  d4 {[%clk 0:00:51]} 26. Ng5 {[%clk 0:00:09]}  Bh6 {[%clk 0:00:44]} 27. f4 {[%clk 0:00:06]}  exf4 {[%clk 0:00:45]}
28. gxf4 {[%clk 0:00:07]}  f6 {[%clk 0:00:46]} 29. h4 {[%clk 0:00:04]}  fxg5 {[%clk 0:00:47]} 30. fxg5 {[%clk 0:00:05]}  Bg7 {[%clk 0:00:48]}
31. Rc2 {[%clk 0:00:04]}  Be5+ {[%clk 0:00:48]} 32. Kg1 {[%clk 0:00:04]}  Rb1+ {[%clk 0:00:49]} 33. Bf1 {[%clk 0:00:05]}  Bh3 {[%clk 0:00:50]}
34. Rc1 {[%clk 0:00:06]}  Rxc1 {[%clk 0:00:50]} 35. Nxc1 {[%clk 0:00:07]}  Bxf1 {[%clk 0:00:51]} 0-1

[Event "2026 Biel Blitz Open"]
[Site "Biel, CH"]
[Date "2026.07.19"]
[Round "3"]
[White "Thorfinnsson, Bjorn"]
[Black "Ashwath Kaushik"]
[Result "1-0"]
[Board "10"]
[TimeControl "180+2"]
[WhiteFideId "2300982"]
[BlackFideId "33387230"]
[WhiteElo "2396"]
[BlackElo "2122"]
[WhiteTitle "IM"]
[BlackTitle "FM"]
[WhiteClock "0:00:42"]
[BlackClock "0:00:53"]
[Variant "Standard"]
[EndDate "2026.07.19"]
[EndTime "12:27:45"]

1. d4 {[%clk 0:03:03]}  d5 {[%clk 0:03:04]} 2. Nf3 {[%clk 0:03:04]}  Nf6 {[%clk 0:03:05]} 3. Bg5 {[%clk 0:03:05]}  e6 {[%clk 0:03:04]}
4. e3 {[%clk 0:03:06]}  Be7 {[%clk 0:03:05]} 5. Bd3 {[%clk 0:03:07]}  h6 {[%clk 0:03:06]} 6. Bh4 {[%clk 0:03:08]}  O-O {[%clk 0:03:05]}
7. Nbd2 {[%clk 0:03:10]}  b6 {[%clk 0:03:06]} 8. h3 {[%clk 0:03:10]}  c5 {[%clk 0:03:07]} 9. c3 {[%clk 0:03:11]}  Ba6 {[%clk 0:03:04]}
10. Bxa6 {[%clk 0:03:10]}  Nxa6 {[%clk 0:03:05]} 11. g4 {[%clk 0:03:11]}  Ne4 {[%clk 0:03:05]} 12. Bxe7 {[%clk 0:03:05]}  Qxe7 {[%clk 0:03:07]}
13. Nxe4 {[%clk 0:03:02]}  dxe4 {[%clk 0:03:08]} 14. Nd2 {[%clk 0:02:47]}  cxd4 {[%clk 0:03:09]} 15. exd4 {[%clk 0:02:46]}  e3 {[%clk 0:03:09]}
16. fxe3 {[%clk 0:02:45]}  Qh4+ {[%clk 0:03:10]} 17. Ke2 {[%clk 0:02:45]}  f5 {[%clk 0:03:11]} 18. Qe1 {[%clk 0:02:45]}  Qf6 {[%clk 0:03:06]}
19. Qg3 {[%clk 0:02:42]}  Rae8 {[%clk 0:02:55]} 20. Raf1 {[%clk 0:02:43]}  Qg6 {[%clk 0:02:53]} 21. Rhg1 {[%clk 0:02:42]}  f4 {[%clk 0:02:15]}
22. exf4 {[%clk 0:02:40]}  Qc2 {[%clk 0:02:14]} 23. Qd3 {[%clk 0:02:40]}  Qa4 {[%clk 0:02:12]} 24. Qc4 {[%clk 0:02:32]}  Qa5 {[%clk 0:02:05]}
25. b4 {[%clk 0:02:18]}  Qa4 {[%clk 0:01:51]} 26. b5 {[%clk 0:01:22]}  Qxc4+ {[%clk 0:01:52]} 27. Nxc4 {[%clk 0:01:23]}  Nc7 {[%clk 0:01:54]}
28. Ne3 {[%clk 0:01:13]}  Nxb5 {[%clk 0:01:54]} 29. Kd3 {[%clk 0:01:14]}  Rc8 {[%clk 0:01:45]} 30. c4 {[%clk 0:01:15]}  Nd6 {[%clk 0:01:45]}
31. f5 {[%clk 0:01:14]}  exf5 {[%clk 0:01:45]} 32. gxf5 {[%clk 0:01:15]}  Rf7 {[%clk 0:01:43]} 33. f6 {[%clk 0:01:14]}  g5 {[%clk 0:01:32]}
34. h4 {[%clk 0:01:15]}  Rfc7 {[%clk 0:01:26]} 35. hxg5 {[%clk 0:01:15]}  Nxc4 {[%clk 0:01:27]} 36. gxh6+ {[%clk 0:01:14]}  Kh8 {[%clk 0:01:27]}
37. Nxc4 {[%clk 0:01:03]}  Rxc4 {[%clk 0:01:28]} 38. f7 {[%clk 0:01:02]}  Rc3+ {[%clk 0:01:28]} 39. Ke4 {[%clk 0:01:02]}  Rf8 {[%clk 0:01:28]}
40. Rg7 {[%clk 0:00:55]}  Rc7 {[%clk 0:01:13]} 41. d5 {[%clk 0:00:51]}  Re7+ {[%clk 0:01:15]} 42. Kd4 {[%clk 0:00:52]}  a5 {[%clk 0:01:16]}
43. d6 {[%clk 0:00:54]}  Re6 {[%clk 0:01:18]} 44. Rfg1 {[%clk 0:00:49]}  Rxd6+ {[%clk 0:01:19]} 45. Ke5 {[%clk 0:00:51]}  Rdd8 {[%clk 0:01:12]}
46. Ke6 {[%clk 0:00:43]}  b5 {[%clk 0:01:04]} 47. h7 {[%clk 0:00:44]}  Ra8 {[%clk 0:00:52]} 48. Rg8+ {[%clk 0:00:44]}  Kxh7 {[%clk 0:00:53]}
49. Rh1+ {[%clk 0:00:42]} 1-0